bitfinex/quotes_BTCUSD_20220205
["timestamp","ask_amount","ask_price","bid_price","bid_amount"]
[1644038259574,0.42125961,41499.0,41496.0,0.005]
[1644038259771,0.04213601,41498.0,41496.0,0.005]
[1644038259975,0.13937462,41495.0,41492.0,0.005]
[1644038260401,0.045,41493.0,41492.0,0.005]
[1644038260901,0.045,41493.0,41492.0,0.08509906]
[1644038261104,0.045,41493.0,41492.0,0.20556906]
[1644038262007,0.22651063,41493.0,41490.0,0.00193627]
[1644038262210,0.0482,41492.0,41490.0,0.00193627]
[1644038262406,0.79982311,41492.0,41490.0,0.0011]
[1644038263007,0.88809176,41492.0,41490.0,0.0011]
[1644038263206,0.8278357,41492.0,41490.0,0.0011]
[1644038264353,0.8278357,41492.0,41483.0,0.0011]
[1644038264354,0.18151063,41484.0,41483.0,0.0011]
[1644038264562,0.87811853,41484.0,41483.0,0.0011]
[1644038264962,0.92631853,41484.0,41483.0,0.0011]
[1644038265654,0.060267,41483.0,41481.0,0.0207967]
[1644038265855,0.80549278,41482.0,41481.0,0.0207967]
[1644038266154,0.80549278,41482.0,41481.0,0.02]
[1644038266555,0.331113,41482.0,41481.0,0.02]
[1644038266755,0.0482,41483.0,41481.0,0.02]
[1644038266956,0.0482,41483.0,41481.0,0.080252]
[1644038267358,0.0482,41483.0,41481.0,0.085252]
[1644038267605,0.22971063,41483.0,41481.0,0.085252]
[1644038267805,0.18151063,41483.0,41481.0,0.085252]
[1644038269505,0.43806893,41484.0,41481.0,0.085252]
[1644038270107,0.331113,41483.0,41481.0,0.02]
[1644038270309,0.18151063,41482.0,41481.0,0.02]
[1644038271453,0.2565583,41484.0,41481.0,0.02]
[1644038271652,0.18151063,41483.0,41481.0,0.02]
[1644038272052,0.22651063,41484.0,41481.0,0.02]
[1644038272952,0.48615839,41484.0,41481.0,0.02]
[1644038273153,0.30464776,41484.0,41481.0,0.02]
[1644038273355,0.18151063,41482.0,41481.0,0.02]
[1644038273753,0.51262363,41482.0,41481.0,0.02]
[1644038274354,0.18151063,41482.0,41481.0,0.02]
[1644038274754,0.25670472,41483.0,41481.0,0.025]
[1644038275204,0.25670472,41483.0,41482.0,0.005]
[1644038275804,0.25670472,41483.0,41481.0,0.02]
[1644038276004,0.29884073,41483.0,41481.0,0.02]
[1644038276204,0.04213601,41483.0,41481.0,0.02]
[1644038277405,0.18151063,41483.0,41481.0,0.02]
[1644038278008,0.13937462,41483.0,41482.0,0.08478702]
[1644038278208,0.18437462,41484.0,41482.0,0.08478702]
[1644038279450,0.44182259,41484.0,41482.0,0.08478702]
[1644038279653,0.44182259,41484.0,41482.0,0.07978702]
[1644038279854,0.44182259,41484.0,41482.0,0.08478702]
[1644038280055,0.44182259,41484.0,41482.0,0.07978702]
[1644038280251,0.37324901,41483.0,41481.0,0.02079439]
[1644038280456,0.37324901,41483.0,41481.0,0.02]
[1644038280457,0.13937462,41482.0,41481.0,0.02]
[1644038280654,0.13937462,41483.0,41481.0,0.02579439]
[1644038280854,0.30244797,41484.0,41481.0,0.02579439]
[1644038281054,0.045,41484.0,41481.0,0.02579439]
[1644038281459,0.22651063,41484.0,41481.0,0.02579439]
[1644038281655,0.22651063,41484.0,41481.0,0.025]
[1644038282254,0.47839155,41484.0,41481.0,0.025]
[1644038283503,0.47839155,41484.0,41483.0,0.06561651]
[1644038284602,0.80950455,41484.0,41483.0,0.06561651]
[1644038284805,0.76736854,41484.0,41483.0,0.06561651]
[1644038285004,0.62799392,41484.0,41483.0,0.06561651]
[1644038285404,0.29688092,41484.0,41483.0,0.06561651]
[1644038285611,0.33901693,41484.0,41483.0,0.06561651]
[1644038286656,0.13937462,41482.0,41481.0,0.02579439]
[1644038286869,0.18143358,41482.0,41481.0,0.02579439]
[1644038287654,0.18143358,41482.0,41481.0,0.025]
[1644038287855,0.29688092,41484.0,41482.0,0.07199252]
[1644038288054,0.18143358,41483.0,41482.0,0.07199252]
[1644038288457,0.045,41484.0,41482.0,0.07199252]
[1644038288654,0.045,41484.0,41483.0,0.060248]
[1644038289456,0.25450315,41484.0,41483.0,0.060248]
[1644038291407,0.045,41484.0,41483.0,0.060248]
[1644038292706,0.27927281,41484.0,41483.0,0.060248]
[1644038292906,0.27927281,41484.0,41481.0,0.02579439]
[1644038293105,0.04205896,41482.0,41481.0,0.02579439]
[1644038293307,0.18143358,41482.0,41481.0,0.02579439]
[1644038293510,0.18143358,41482.0,41481.0,0.025]
[1644038293955,0.27927281,41484.0,41481.0,0.10649294]
[1644038294353,0.18143358,41483.0,41481.0,0.10649294]
[1644038296156,0.18143358,41483.0,41481.0,0.025]
[1644038298607,0.21740772,41490.0,41481.0,0.07]
[1644038298815,0.71724702,41489.0,41481.0,0.02]
[1644038299010,0.19322604,41483.0,41481.0,0.02]
[1644038299209,0.62349218,41482.0,41481.0,0.02]
[1644038299811,0.83884565,41482.0,41481.0,0.02]
[1644038309858,0.88884565,41482.0,41481.0,0.02]
[1644038310158,0.83884565,41482.0,41481.0,0.02]
[1644038312706,0.88884565,41482.0,41481.0,0.02]
[1644038314012,0.88884565,41482.0,41481.0,0.01792989]
[1644038316656,0.83884565,41482.0,41481.0,0.01792989]
[1644038317357,0.88884565,41482.0,41481.0,0.01792989]
[1644038318356,0.83884565,41482.0,41481.0,0.01792989]
[1644038322910,0.88884565,41482.0,41481.0,0.01792989]
[1644038324464,0.75,41481.0,41479.0,0.00098336]
[1644038324665,0.75,41478.0,41471.0,0.142737]
[1644038324869,0.631113,41477.0,41471.0,0.02239072]
[1644038325066,0.331113,41475.0,41471.0,0.02239072]
[1644038325266,0.391403,41473.0,41471.0,0.02239072]
[1644038325460,0.82089564,41473.0,41471.0,0.02239072]
[1644038325858,0.90797483,41473.0,41471.0,0.02239072]
[1644038326257,0.95797483,41473.0,41471.0,0.02239072]
[1644038326459,0.3,41472.0,41471.0,0.02239072]
[1644038326660,0.75,41471.0,41467.0,0.0011]
[1644038326858,0.331113,41470.0,41467.0,0.0011]
[1644038327058,0.431113,41470.0,41467.0,0.0011]
[1644038327259,0.69938979,41469.0,41467.0,0.0011]
[1644038327614,0.29471637,41468.0,41467.0,0.0011]
[1644038328609,0.34471637,41468.0,41467.0,0.0011]
[1644038328810,0.67582937,41468.0,41467.0,0.0011]
[1644038329009,0.34471637,41468.0,41467.0,0.0011]
[1644038329809,0.44471637,41468.0,41467.0,0.0011]
[1644038331210,0.77582937,41468.0,41467.0,0.0011]
[1644038331456,0.44471637,41468.0,41467.0,0.0011]
[1644038331656,0.77582937,41468.0,41467.0,0.0011]
[1644038331957,0.44471637,41468.0,41467.0,0.0011]
[1644038332759,0.75,41467.0,41457.0,0.00333302]
[1644038332959,0.060302,41464.0,41457.0,0.00333302]
[1644038333158,0.799935,41463.0,41456.0,0.074]
[1644038333356,0.331113,41460.0,41456.0,0.074]
[1644038333556,0.108517,41459.0,41456.0,0.074]
[1644038333756,0.331113,41458.0,41456.0,0.074]
[1644038333955,0.87936218,41457.0,41456.0,0.074]
[1644038334357,1.15722785,41457.0,41456.0,0.074]
[1644038334656,0.75,41456.0,41454.0,0.02052706]
[1644038334857,0.331113,41455.0,41454.0,0.02052706]
[1644038335117,0.70095361,41455.0,41454.0,0.02052706]
[1644038335323,0.80095361,41455.0,41454.0,0.02052706]
[1644038335515,0.80095361,41455.0,41451.0,0.02]
[1644038335516,0.06031719,41454.0,41451.0,0.02]
[1644038335718,0.70751456,41453.0,41451.0,0.02]
[1644038335916,0.81557831,41453.0,41452.0,0.00359911]
[1644038336617,0.81528816,41453.0,41452.0,0.00359911]
[1644038336816,0.75,41452.0,41451.0,0.0181]
[1644038337017,1.39235239,41452.0,41451.0,0.0181]
[1644038337217,1.54235239,41452.0,41451.0,0.0181]
[1644038337417,0.79235239,41452.0,41451.0,0.0181]
[1644038341566,0.64235239,41452.0,41451.0,0.0181]
[1644038341766,0.69235239,41452.0,41451.0,0.0181]
[1644038341967,0.331113,41452.0,41451.0,0.0181]
[1644038342167,0.381113,41452.0,41451.0,0.0181]
[1644038342367,0.331113,41452.0,41451.0,0.0181]
[1644038344023,0.331113,41452.0,41451.0,0.01829081]
[1644038344225,0.331113,41452.0,41451.0,0.0181]
[1644038346558,0.331113,41452.0,41451.0,0.01829081]
[1644038346758,0.381113,41452.0,41451.0,0.01829081]
[1644038346959,0.381113,41452.0,41451.0,0.0181]
[1644038348063,0.331113,41452.0,41451.0,0.0681]
[1644038349261,0.331113,41452.0,41451.0,0.0181]
[1644038349461,0.331113,41452.0,41451.0,0.0681]
[1644038349662,0.331113,41452.0,41451.0,0.0181]
[1644038349861,0.331113,41452.0,41451.0,0.0681]
[1644038350111,0.331113,41452.0,41451.0,0.0181]
[1644038351113,0.331113,41452.0,41451.0,0.0681]
[1644038351314,0.331113,41452.0,41451.0,0.0181]
[1644038357064,0.331113,41452.0,41451.0,0.0681]
[1644038358321,0.331113,41452.0,41451.0,0.06829081]
[1644038358721,0.02944252,41454.0,41451.0,0.06829081]
[1644038359723,0.331113,41453.0,41451.0,0.06829081]
[1644038360924,0.391421,41453.0,41451.0,0.06829081]
[1644038361134,0.060308,41453.0,41451.0,0.0681]
[1644038361370,0.060308,41453.0,41451.0,0.06829081]
[1644038361371,0.331113,41452.0,41451.0,0.06829081]
[1644038361766,0.285717,41457.0,41451.0,0.06829081]
[1644038361965,0.331113,41456.0,41454.0,0.05]
[1644038363771,0.331113,41456.0,41454.0,0.05019081]
[1644038364567,0.331113,41456.0,41454.0,0.00019081]
[1644038364768,0.331113,41456.0,41453.0,0.06127892]
[1644038364969,0.331113,41456.0,41455.0,0.05]
[1644038365412,0.331113,41459.0,41456.0,0.060294]
[1644038365612,0.331113,41459.0,41458.0,0.05]
[1644038367224,0.02031179,41467.0,41458.0,0.12877193]
[1644038367418,0.35142479,41467.0,41466.0,0.11028]
[1644038367619,0.02031179,41467.0,41466.0,0.11028]
[1644038368017,0.56971169,41467.0,41466.0,0.11028]
[1644038369100,0.23859869,41467.0,41466.0,0.11028]
[1644038369494,0.2182869,41467.0,41466.0,0.11028]
[1644038370494,0.00642596,41468.0,41466.0,0.18273034]
[1644038370697,0.00078709,41475.0,41466.0,0.18273034]
[1644038370898,0.00078709,41475.0,41474.0,0.05]
[1644038371097,0.00078709,41475.0,41474.0,0.110264]
[1644038371498,0.00078709,41475.0,41474.0,0.186194]
[1644038371703,0.0210343,41479.0,41474.0,0.2533248]
[1644038371898,0.0210343,41479.0,41478.0,0.05]
[1644038372097,0.0210343,41479.0,41474.0,0.1430608]
[1644038372098,0.21038692,41481.0,41474.0,0.1430608]
[1644038372398,0.20716586,41482.0,41474.0,0.1430608]
[1644038372622,0.20716586,41482.0,41478.0,0.060258]
[1644038373223,0.00033535,41480.0,41478.0,0.060258]
[1644038374024,0.05,41481.0,41478.0,0.060258]
[1644038374233,0.05078739,41481.0,41478.0,0.060258]
[1644038375134,0.00078739,41481.0,41478.0,0.060258]
[1644038375330,0.00078739,41481.0,41474.0,0.136197]
[1644038375331,0.05,41480.0,41474.0,0.136197]
[1644038375530,0.05,41476.0,41474.0,0.136197]
[1644038376769,0.06885419,41477.0,41474.0,0.136197]
[1644038377566,0.06806676,41477.0,41474.0,0.07593]
[1644038378964,0.06806676,41477.0,41474.0,0.07093]
[1644038379566,0.2161748,41475.0,41474.0,0.07093]
[1644038379967,0.2661748,41475.0,41474.0,0.07093]
[1644038380611,0.2161748,41475.0,41474.0,0.07093]
[1644038381514,0.06885375,41477.0,41474.0,0.07093]
[1644038382114,0.06885375,41477.0,41474.0,0.131199]
[1644038382515,0.06806676,41477.0,41474.0,0.131199]
[1644038382715,0.06806676,41477.0,41474.0,0.060269]
[1644038383116,0.26638087,41477.0,41474.0,0.060269]
[1644038383716,0.26638087,41477.0,41471.0,0.060272]
[1644038383962,0.06806676,41477.0,41471.0,0.060272]
[1644038384163,0.05078698,41478.0,41471.0,0.060272]
[1644038385064,0.0007865,41477.0,41471.0,0.060272]
[1644038386168,0.11348994,41478.0,41471.0,0.060272]
[1644038386367,0.00078651,41476.0,41471.0,0.060272]
[1644038387269,0.22928416,41480.0,41471.0,0.060272]
[1644038387467,0.00078652,41476.0,41471.0,0.060272]
[1644038387918,0.00078652,41476.0,41472.0,0.0482]
[1644038388118,0.00078652,41476.0,41473.0,0.34752346]
[1644038388317,0.00078652,41476.0,41474.0,0.060245]
[1644038388522,0.002,41482.0,41475.0,0.0482]
[1644038388719,0.00078654,41477.0,41475.0,0.0482]
[1644038388918,0.00078654,41477.0,41476.0,0.267712]
[1644038389119,0.00078654,41477.0,41476.0,0.11687246]
[1644038389519,0.00078654,41477.0,41476.0,0.29760746]
[1644038389724,0.002,41482.0,41476.0,0.29760746]
[1644038389919,0.00078652,41479.0,41476.0,0.29760746]
[1644038390325,0.00078652,41479.0,41476.0,0.228935]
[1644038391019,0.0007865,41480.0,41476.0,0.0482]
[1644038391220,0.0007865,41480.0,41476.0,0.108463]
[1644038391470,0.0007865,41480.0,41476.0,0.1744778]
[1644038392068,0.21954644,41482.0,41476.0,0.1744778]
[1644038392273,0.24201358,41479.0,41476.0,0.1744778]
[1644038392469,0.0007865,41480.0,41476.0,0.1744778]
[1644038393068,0.0007865,41480.0,41476.0,0.1262778]
[1644038393269,0.21954644,41482.0,41476.0,0.1262778]
[1644038393469,0.2334376,41480.0,41476.0,0.1262778]
[1644038394468,0.2326511,41480.0,41476.0,0.1262778]
[1644038394669,0.2334376,41480.0,41476.0,0.1262778]
[1644038395616,0.2326511,41480.0,41476.0,0.060263]
[1644038395815,0.23343873,41480.0,41476.0,0.060263]
[1644038396215,0.23311108,41480.0,41476.0,0.060263]
[1644038396816,0.23232345,41480.0,41476.0,0.060263]
[1644038397016,0.23311108,41480.0,41476.0,0.060263]
[1644038398018,0.23232345,41480.0,41476.0,0.060263]
[1644038398218,0.23311108,41480.0,41476.0,0.060263]
[1644038398519,0.23311108,41480.0,41475.0,0.120517]
[1644038398520,0.05,41478.0,41475.0,0.120517]
[1644038398720,0.05,41478.0,41466.0,0.23132053]
[1644038398981,0.05,41471.0,41464.0,0.1335147]
[1644038399279,0.20600818,41469.0,41464.0,0.02189417]
[1644038399481,0.05,41471.0,41466.0,0.06674724]
[1644038400284,0.05,41468.0,41466.0,0.06674724]
[1644038401083,0.05,41468.0,41466.0,0.12702724]
[1644038404216,0.05,41468.0,41466.0,0.06028]
[1644038404418,0.0482,41467.0,41463.0,0.00083332]
[1644038404617,0.05,41464.0,41463.0,0.00083332]
[1644038405222,0.31709842,41464.0,41455.0,0.06048481]
[1644038405421,0.31709842,41464.0,41461.0,0.00083332]
[1644038405422,0.62910595,41464.0,41461.0,0.00083332]
[1644038405617,0.05,41462.0,41461.0,0.00083332]
[1644038405817,0.381113,41462.0,41461.0,0.00083332]
[1644038406465,0.381113,41462.0,41456.0,0.07998186]
[1644038406665,0.05,41457.0,41453.0,0.00199493]
[1644038406866,0.05,41457.0,41453.0,0.00218574]
[1644038407066,0.05,41461.0,41456.0,0.060294]
[1644038407265,0.2902214,41462.0,41456.0,0.060294]
[1644038407465,0.05,41459.0,41456.0,0.060294]
[1644038407968,0.05,41459.0,41457.0,0.00049868]
[1644038408364,0.05,41459.0,41458.0,0.06350719]
[1644038412819,0.05,41459.0,41456.0,0.06112775]
[1644038413622,0.05,41459.0,41456.0,0.060294]
[1644038415672,0.05,41459.0,41455.0,0.00102457]
[1644038415969,0.2902214,41462.0,41455.0,0.00102457]
[1644038415970,0.05,41456.0,41455.0,0.00083376]
[1644038416168,0.05,41456.0,41452.0,0.00019081]
[1644038416369,0.0482,41456.0,41455.0,0.00083377]
[1644038416568,0.6008178,41456.0,41455.0,0.00083377]
[1644038417068,0.6508178,41456.0,41455.0,0.00083377]
[1644038417268,0.6508178,41456.0,41452.0,0.00019081]
[1644038417468,0.05,41453.0,41451.0,0.0181]
[1644038418120,0.331113,41452.0,41451.0,0.0181]
[1644038418324,0.05,41453.0,41451.0,0.0181]
[1644038418920,0.05,41453.0,41451.0,0.01829081]
[1644038419921,0.05,41453.0,41451.0,0.0181]
[1644038420120,0.05,41453.0,41451.0,0.01829081]
[1644038420720,0.05,41453.0,41452.0,0.060299]
[1644038420924,0.05,41453.0,41452.0,0.06048981]
[1644038422466,0.1249,41458.0,41452.0,0.06048981]
[1644038422467,0.05,41455.0,41452.0,0.06048981]
[1644038427318,0.2727969,41459.0,41452.0,0.06048981]
[1644038427520,0.05,41461.0,41452.0,0.06048981]
[1644038427921,0.1149,41464.0,41452.0,0.06048981]
[1644038428121,0.05,41461.0,41452.0,0.06048981]
[1644038428322,0.21667984,41459.0,41454.0,0.00083378]
[1644038428520,0.21667984,41459.0,41456.0,0.060289]
[1644038428725,0.05,41461.0,41456.0,0.060289]
[1644038429575,0.05,41461.0,41456.0,0.06112275]
[1644038429776,0.25800638,41461.0,41456.0,0.06112275]
[1644038430171,0.25800638,41461.0,41456.0,0.13765384]
[1644038430571,0.25800638,41461.0,41456.0,0.13682009]
[1644038430774,0.25800638,41461.0,41456.0,0.13765384]
[1644038431574,0.25800638,41461.0,41456.0,0.06112275]
[1644038431775,0.05,41457.0,41456.0,0.060289]
[1644038431975,0.381113,41457.0,41456.0,0.06112275]
[1644038432927,0.05,41457.0,41456.0,0.060289]
[1644038436487,0.04989183,41458.0,41456.0,0.06039717]
[1644038437183,0.04989183,41458.0,41457.0,0.00010817]
[1644038440222,0.04989183,41458.0,41456.0,0.06039717]
[1644038440622,0.04989183,41458.0,41456.0,0.060289]
[1644038441425,0.04989183,41458.0,41457.0,0.00010817]
[1644038442224,0.04989183,41458.0,41456.0,0.060289]
[1644038446575,0.04989183,41458.0,41457.0,0.08625735]
[1644038450722,0.04989183,41458.0,41457.0,0.08636552]
[1644038451390,0.16479183,41464.0,41459.0,0.060282]
[1644038451584,0.02110145,41471.0,41463.0,0.00010817]
[1644038451585,0.04989183,41467.0,41463.0,0.00010817]
[1644038451781,0.114,41470.0,41466.0,0.08285096]
[1644038451985,0.26445404,41467.0,41466.0,0.08285096]
[1644038452379,0.26445404,41467.0,41466.0,0.20338996]
[1644038453283,0.26445404,41467.0,41466.0,0.49915346]
[1644038456320,0.04989183,41472.0,41467.0,0.060266]
[1644038456520,0.04989183,41472.0,41470.0,0.00010817]
[1644038456720,0.04989183,41472.0,41470.0,0.12063917]
[1644038457325,0.19403476,41471.0,41470.0,0.12063917]
[1644038458221,0.19403476,41471.0,41470.0,0.18090517]
[1644038458421,0.19403476,41471.0,41470.0,0.24117107]
[1644038459074,0.19393969,41471.0,41470.0,0.24117107]
[1644038459276,0.19393969,41471.0,41470.0,0.54373024]
[1644038460880,0.24383152,41471.0,41470.0,0.54373024]
[1644038461082,0.19393969,41471.0,41470.0,0.48346424]
[1644038463320,0.04989183,41474.0,41470.0,0.48346424]
[1644038463530,0.36163379,41475.0,41473.0,0.32092529]
[1644038463725,0.36163379,41475.0,41473.0,0.06036917]
[1644038463726,0.00083379,41475.0,41473.0,0.06036917]
[1644038464027,0.59977127,41481.0,41474.0,0.5]
[1644038464225,0.59977127,41481.0,41479.0,0.00010817]
[1644038464226,0.5964366,41481.0,41479.0,0.00010817]
[1644038464424,0.0502366,41481.0,41479.0,0.00010817]
[1644038464827,0.0502366,41481.0,41480.0,0.060251]
[1644038465131,0.04989183,41481.0,41480.0,0.060251]
[1644038466227,0.04989183,41481.0,41477.0,0.060269]
[1644038466477,0.04989183,41479.0,41477.0,0.060269]
[1644038470119,0.04989183,41479.0,41478.0,0.00010817]
[1644038471121,0.04989183,41479.0,41477.0,0.060269]
[1644038471324,0.04989183,41479.0,41478.0,0.00010817]
[1644038471721,0.04989183,41479.0,41477.0,0.060269]
[1644038471923,0.04989183,41479.0,41478.0,0.00010817]
[1644038474068,0.04989183,41479.0,41477.0,0.060269]
[1644038474269,0.04989183,41479.0,41478.0,0.00010817]
[1644038475270,0.0011786,41481.0,41478.0,0.00010817]
[1644038475475,0.00083383,41481.0,41479.0,0.00010817]
[1644038475670,0.0011786,41481.0,41480.0,0.060246]
[1644038475869,0.00083383,41481.0,41480.0,0.060246]
[1644038476069,0.00234477,41482.0,41480.0,0.060246]
[1644038477170,0.00234477,41482.0,41480.0,0.13572629]
[1644038478223,0.00234477,41482.0,41480.0,0.42032713]
[1644038478426,0.00234477,41482.0,41481.0,0.29913056]
[1644038478624,0.00234477,41482.0,41481.0,0.34413056]
[1644038478625,0.002,41482.0,41481.0,0.34413056]
[1644038478824,0.002,41482.0,41481.0,0.49233056]
[1644038479025,0.002,41482.0,41481.0,0.49225011]
[1644038479223,0.002,41482.0,41481.0,0.73809878]
[1644038479426,0.00034477,41484.0,41482.0,0.810232]
[1644038479626,0.001,41485.0,41482.0,0.810232]
[1644038479627,0.00134477,41485.0,41483.0,0.45356983]
[1644038479825,0.00034477,41484.0,41483.0,0.21033717]
[1644038480026,0.001,41489.0,41484.0,0.75]
[1644038480225,0.001,41489.0,41488.0,0.00010817]
[1644038480426,0.001,41489.0,41488.0,0.07321612]
[1644038480631,0.001,41489.0,41488.0,0.42075482]
[1644038480828,0.001,41489.0,41488.0,0.52075482]
[1644038481389,0.05089183,41489.0,41488.0,0.108432]
[1644038481783,0.31361243,41489.0,41488.0,0.108432]
[1644038481984,0.31361243,41489.0,41488.0,0.10854017]
[1644038482184,0.001,41489.0,41488.0,0.10854017]
[1644038483686,0.26288445,41489.0,41488.0,0.10854017]
[1644038484086,0.26288445,41489.0,41488.0,0.06034017]
[1644038484685,0.26288445,41489.0,41488.0,0.13001673]
[1644038484886,0.31277628,41489.0,41488.0,0.06034017]
[1644038485123,0.31277628,41489.0,41488.0,0.060232]
[1644038486724,0.58633271,41489.0,41488.0,0.060232]
[1644038487825,0.58633271,41489.0,41483.0,0.120495]
[1644038488025,0.53644088,41489.0,41484.0,0.00010817]
[1644038488230,0.04989183,41485.0,41484.0,0.00010817]
[1644038488426,0.04989183,41485.0,41483.0,0.12060317]
[1644038488878,0.21849782,41484.0,41483.0,0.12060317]
[1644038489269,0.04989183,41485.0,41483.0,0.12060317]
[1644038489675,0.26288445,41489.0,41483.0,0.12060317]
[1644038489971,0.04989183,41488.0,41483.0,0.12060317]
[1644038490172,0.27498224,41486.0,41483.0,0.12060317]
[1644038490972,0.32487407,41486.0,41483.0,0.12060317]
[1644038491373,0.27498224,41486.0,41483.0,0.12060317]
[1644038491573,0.32487407,41486.0,41483.0,0.12060317]
[1644038495933,0.32521819,41486.0,41483.0,0.12060317]
[1644038496674,0.32521819,41486.0,41483.0,0.120495]
[1644038496874,0.25446635,41485.0,41483.0,0.120495]
[1644038497074,0.00034412,41485.0,41483.0,0.120495]
[1644038497273,0.32521819,41486.0,41483.0,0.120495]
[1644038497874,0.32521819,41486.0,41484.0,0.00010817]
[1644038498075,0.32487407,41486.0,41484.0,0.00010817]
[1644038498478,0.32521819,41486.0,41484.0,0.00010817]
[1644038498674,0.32521819,41486.0,41483.0,0.120495]
[1644038499074,0.32487407,41486.0,41483.0,0.120495]
[1644038499474,0.32521819,41486.0,41485.0,0.060247]
[1644038499675,0.32487407,41486.0,41485.0,0.060247]
[1644038500524,0.04989183,41486.0,41485.0,0.060247]
[1644038501627,0.28550415,41486.0,41485.0,0.060247]
[1644038502225,0.04989183,41486.0,41485.0,0.060247]
[1644038502428,0.04981172,41486.0,41485.0,0.060247]
[1644038503224,0.29571673,41486.0,41485.0,0.060247]
[1644038503425,0.04981172,41486.0,41485.0,0.060247]
[1644038513184,0.00034412,41487.0,41485.0,0.060247]
[1644038513386,0.03481172,41486.0,41485.0,0.060247]
[1644038520882,0.03481172,41486.0,41485.0,0.07543528]
[1644038521482,0.03481172,41486.0,41485.0,0.36119814]
[1644038521887,0.03481172,41486.0,41485.0,0.44600986]
[1644038522283,0.03481172,41486.0,41485.0,0.43099261]
[1644038522484,0.03481172,41486.0,41485.0,0.41580433]
[1644038523132,0.03481172,41486.0,41485.0,0.14522975]
[1644038523332,0.03481172,41486.0,41485.0,0.04522975]
[1644038523631,0.03481172,41486.0,41485.0,0.03004147]
[1644038524332,0.03481172,41486.0,41485.0,0.04522975]
[1644038525232,0.27820727,41486.0,41485.0,0.04522975]
[1644038525433,0.27820727,41486.0,41485.0,0.03004147]
[1644038525834,0.60932027,41486.0,41477.0,0.0008356]
[1644038526033,0.03481172,41478.0,41477.0,0.0008356]
[1644038526234,0.27641512,41478.0,41477.0,0.0008356]
[1644038526480,0.84585056,41478.0,41472.0,0.08210171]
[1644038526680,0.51473756,41478.0,41475.0,0.00049949]
[1644038526881,0.331113,41477.0,41475.0,0.00049949]
[1644038527083,0.331113,41477.0,41475.0,0.06076949]
[1644038527678,0.331113,41477.0,41475.0,0.06027]
[1644038528681,0.03481172,41478.0,41475.0,0.06027]
[1644038529482,0.03481172,41478.0,41475.0,0.06015948]
[1644038529687,0.20992984,41476.0,41475.0,0.06015948]
[1644038530126,0.03481172,41478.0,41475.0,0.06015948]
[1644038535188,0.03481172,41478.0,41475.0,0.12041648]
[1644038535388,0.03481172,41478.0,41476.0,0.120513]
[1644038539332,0.03481172,41478.0,41477.0,0.28139032]
[1644038540235,0.03481172,41478.0,41477.0,0.2965786]
[1644038540432,0.03481172,41481.0,41477.0,0.3568276]
[1644038540632,0.03481172,41481.0,41480.0,0.01518828]
[1644038540831,0.03481172,41481.0,41480.0,0.31270731]
[1644038541236,0.03481172,41481.0,41480.0,0.65138309]
[1644038541477,0.03481172,41481.0,41480.0,0.79854456]
[1644038541681,0.02105739,41483.0,41480.0,0.79854456]
[1644038541879,0.00029452,41485.0,41481.0,0.930696]
[1644038542076,0.00029452,41485.0,41484.0,0.01518828]
[1644038542278,0.00034412,41487.0,41484.0,0.01518828]
[1644038542475,0.03515584,41488.0,41484.0,0.01518828]
[1644038542677,0.00029453,41485.0,41483.0,0.50597974]
[1644038542979,0.00029453,41485.0,41484.0,0.34225219]
[1644038543379,0.00029453,41485.0,41484.0,0.56271203]
[1644038543579,0.00034412,41487.0,41484.0,0.56271203]
[1644038543778,0.00081701,41487.0,41486.0,0.01518828]
[1644038543978,0.00116113,41487.0,41486.0,0.01518828]
[1644038544179,0.00081701,41487.0,41486.0,0.01518828]
[1644038544578,0.00081701,41487.0,41484.0,0.59752375]
[1644038544779,0.00034412,41487.0,41485.0,0.060231]
[1644038544981,0.03515584,41488.0,41487.0,0.060233]
[1644038545240,0.00181699,41489.0,41487.0,0.52464807]
[1644038545442,0.00034559,41493.0,41489.0,0.75]
[1644038545651,0.001,41494.0,41492.0,0.02146458]
[1644038545840,0.002,41497.0,41492.0,0.02146458]
[1644038545841,0.002,41497.0,41493.0,0.7982]
[1644038546042,0.002,41497.0,41493.0,0.958412]
[1644038546242,0.002,41497.0,41494.0,0.12942319]
[1644038546441,0.006,41500.0,41496.0,0.01518828]
[1644038546641,0.006,41500.0,41497.0,0.0482]
[1644038547041,0.006,41500.0,41497.0,0.24051778]
[1644038547241,0.006,41500.0,41497.0,0.47113578]
[1644038547441,0.00629504,41500.0,41497.0,0.47113578]
[1644038547644,0.00629504,41500.0,41497.0,0.57113578]
[1644038548041,0.00629504,41500.0,41497.0,0.64587034]
[1644038548247,0.00629504,41500.0,41497.0,0.57113578]
[1644038548442,0.00629504,41500.0,41497.0,0.64587034]
[1644038548641,0.00629504,41500.0,41497.0,0.57113578]
[1644038549484,0.002,41502.0,41497.0,0.57113578]
[1644038549485,0.00129504,41502.0,41498.0,0.75]
[1644038549690,0.00129504,41502.0,41501.0,0.01518828]
[1644038553535,0.02679504,41502.0,41501.0,0.01518828]
[1644038553730,0.06160676,41502.0,41501.0,0.01518828]
[1644038553932,0.02679504,41502.0,41501.0,0.01518828]
[1644038556476,0.02679504,41502.0,41501.0,0.07896221]
[1644038558781,0.02679504,41502.0,41501.0,0.01518828]
[1644038563128,0.02679504,41502.0,41500.0,0.20184975]
[1644038563328,0.02714051,41502.0,41500.0,0.1416366]
[1644038563529,0.02714051,41502.0,41500.0,0.15682488]
[1644038563530,0.06195223,41502.0,41500.0,0.15682488]
[1644038564184,0.06195223,41502.0,41500.0,0.1416366]
[1644038564386,0.06195223,41502.0,41500.0,0.0916366]
[1644038564988,0.05695223,41502.0,41500.0,0.060213]
[1644038565192,0.3,41501.0,41497.0,0.060232]
[1644038565386,0.03481172,41498.0,41494.0,0.11925066]
[1644038565589,0.03481172,41495.0,41493.0,0.120463]
[1644038566387,0.03481172,41495.0,41494.0,0.060231]
[1644038567188,0.03481172,41495.0,41494.0,0.12583362]
[1644038567628,0.03481172,41495.0,41494.0,0.40993136]
[1644038567832,0.00034547,41501.0,41494.0,0.77210237]
[1644038567833,0.03481172,41500.0,41494.0,0.77210237]
[1644038568031,0.03481172,41500.0,41499.0,0.060219]
[1644038568230,0.05322312,41500.0,41499.0,0.060219]
[1644038568432,0.05287765,41500.0,41499.0,0.060219]
[1644038569932,0.05287765,41500.0,41499.0,0.35482901]